fUST/lending_fUST_20241226
["ID","MTS","AMOUNT","RATE_DAILY","PERIOD"]
[346698065,1735203039335,-500.0,0.00016436,2]
[346698066,1735203039346,-500.0,0.00016436,2]
[346698067,1735203039356,-500.0,0.00016436,2]
[346698068,1735203039366,-500.0,0.00016436,2]
[346698069,1735203039376,-611.93,0.00016436,2]
[346698070,1735203039385,-500.0,0.00016436,2]
[346698071,1735203039395,-500.0,0.00016436,2]
[346698072,1735203039406,-500.0,0.00016436,2]
[346698073,1735203039417,-500.0,0.00016436,2]
[346698074,1735203039427,-500.0,0.00016436,2]
[346698075,1735203039436,-500.0,0.00016436,2]
[346698076,1735203039446,-500.0,0.00016436,2]
[346698077,1735203039455,-500.0,0.00016436,2]
[346698078,1735203039465,-500.0,0.00016436,2]
[346698079,1735203039475,-507.33,0.00016436,2]
[346698080,1735203039485,-500.0,0.00016436,2]
[346698081,1735203039494,-500.0,0.00016436,2]
[346698082,1735203039504,-940.25,0.00016436,2]
[346698083,1735203039514,-500.0,0.00016436,2]
[346698084,1735203039524,-500.0,0.00016436,2]
[346698085,1735203039534,-504.80506325,0.00016436,2]
[346698086,1735203039543,-500.0,0.00016436,2]
[346698087,1735203039553,-500.0,0.00016436,2]
[346698088,1735203039563,-500.0,0.00016436,2]
[346698089,1735203039573,-53.9293769,0.00016436,2]
[346698090,1735203039585,-446.0706231,0.00016436,2]
[346698091,1735203039595,-500.0,0.00016436,2]
[346698092,1735203039605,-500.0,0.00016436,2]
[346698093,1735203039614,-500.0,0.00016436,2]
[346698094,1735203039624,-500.0,0.00016436,2]
[346698095,1735203039634,-500.0,0.00016436,2]
[346698096,1735203039643,-500.0,0.00016436,2]
[346698097,1735203039652,-500.0,0.00016436,2]
[346698098,1735203039662,-500.0,0.00016436,2]
[346698099,1735203039672,-500.0,0.00016436,2]
[346698100,1735203039682,-500.0,0.00016436,2]
[346698101,1735203039692,-500.0,0.00016436,2]
[346698102,1735203039701,-500.0,0.00016436,2]
[346698104,1735203039711,-500.0,0.00016436,2]
[346698106,1735203039720,-500.0,0.00016436,2]
[346698107,1735203039730,-500.0,0.00016436,2]
[346698108,1735203039739,-500.0,0.00016436,2]
[346698109,1735203039748,-500.0,0.00016436,2]
[346698110,1735203039758,-500.0,0.00016436,2]
[346698111,1735203039767,-500.0,0.00016436,2]
[346698112,1735203039777,-500.0,0.00016436,2]
[346698113,1735203039786,-500.0,0.00016436,2]
[346698114,1735203039796,-500.0,0.00016436,2]
[346698115,1735203039805,-500.0,0.00016436,2]
[346698116,1735203039815,-500.0,0.00016436,2]
[346698117,1735203039825,-500.0,0.00016436,2]
[346698118,1735203039834,-500.0,0.00016436,2]
[346698119,1735203039843,-500.0,0.00016436,2]
[346698120,1735203039855,-500.0,0.00016436,2]
[346698121,1735203039865,-402.39045219,0.00016436,2]
[346698122,1735203039874,-500.0,0.00016436,2]
[346698123,1735203039883,-500.0,0.00016436,2]
[346698124,1735203039893,-500.0,0.00016436,2]
[346698125,1735203039903,-500.0,0.00016436,2]
[346698126,1735203039912,-500.0,0.00016436,2]
[346698127,1735203039921,-500.0,0.00016436,2]
[346698128,1735203039930,-500.0,0.00016437,2]
[346698129,1735203039939,-500.0,0.00016437,2]
[346698130,1735203039949,-500.0,0.00016437,2]
[346698131,1735203039958,-500.0,0.00016437,2]
[346698132,1735203039967,-500.0,0.00016437,2]
[346698133,1735203039976,-200.0,0.00016438,2]
[346698134,1735203039986,-500.0,0.00016438,2]
[346698135,1735203039996,-500.0,0.00016438,2]
[346698136,1735203040006,-242.04201739,0.00016438,2]
[346698137,1735203040015,-150.0,0.00016694,2]
[346698138,1735203040024,-457.36,0.000167,2]
[346698139,1735203040034,-500.0,0.00016709,2]
[346698140,1735203040043,-500.0,0.00016709,2]
[346698141,1735203040053,-500.0,0.00016709,2]
[346698142,1735203040063,-169.86171395,0.00016709,2]
[346698143,1735203040073,-490.9,0.00016709,2]
[346698144,1735203040082,-500.0,0.00016709,2]
[346698145,1735203040092,-500.0,0.00016709,2]
[346698146,1735203040108,-500.0,0.00016709,2]
[346698147,1735203040118,-500.0,0.00016709,2]
[346698148,1735203040127,-500.0,0.00016709,2]
[346698149,1735203040136,-500.0,0.00016709,2]
[346698150,1735203040145,-500.0,0.00016709,2]
[346698151,1735203040154,-173.196,0.00016709,2]
[346698152,1735203040164,-500.0,0.00016709,2]
[346698153,1735203040173,-500.0,0.00016709,2]
[346698154,1735203040183,-500.0,0.00016709,2]
[346698155,1735203040195,-500.0,0.00016709,2]
[346698156,1735203040205,-500.0,0.00016709,2]
[346698157,1735203040215,-500.0,0.00016709,2]
[346698158,1735203040225,-500.0,0.00016709,2]
[346698159,1735203040235,-500.0,0.0001671,2]
[346698160,1735203040244,-500.0,0.0001671,2]
[346698161,1735203040253,-500.0,0.0001671,2]
[346698162,1735203040265,-500.0,0.0001671,2]
[346698163,1735203040274,-564.13,0.0001671,2]
[346698164,1735203040284,-500.0,0.0001671,2]
[346698166,1735203040293,-500.0,0.0001671,2]
[346698168,1735203040303,-500.0,0.0001671,2]
[346698170,1735203040312,-500.0,0.0001671,2]
[346698171,1735203040321,-500.0,0.0001671,2]
[346698172,1735203040330,-168.0,0.0001671,2]
[346698174,1735203040341,-500.0,0.0001671,2]
[346698176,1735203040351,-500.0,0.0001671,2]
[346698178,1735203040360,-500.0,0.0001671,2]
[346698179,1735203040369,-500.0,0.0001671,2]
[346698180,1735203040379,-500.0,0.0001671,2]
[346698181,1735203040388,-500.0,0.0001671,2]
[346698182,1735203040397,-500.0,0.0001671,2]
[346698184,1735203040406,-236.97,0.0001671,2]
[346698185,1735203040415,-500.0,0.0001671,2]
[346698186,1735203040425,-607.1,0.0001671,2]
[346698187,1735203040434,-500.0,0.0001671,2]
[346698188,1735203040444,-500.0,0.0001671,2]
[346698189,1735203040453,-500.0,0.0001671,2]
[346698190,1735203040462,-500.0,0.0001671,2]
[346698191,1735203040472,-500.0,0.0001671,2]
[346698192,1735203040481,-500.0,0.0001671,2]
[346698193,1735203040490,-500.0,0.0001671,2]
[346698194,1735203040499,-940.25,0.0001671,2]
[346698195,1735203040508,-500.0,0.0001671,2]
[346698196,1735203040518,-500.0,0.0001671,2]
[346698197,1735203040527,-500.0,0.0001671,2]
[346698198,1735203040537,-500.0,0.0001671,2]
[346698199,1735203040546,-500.0,0.0001671,2]
[346698202,1735203040644,-500.0,0.0001671,2]
[346698204,1735203040665,-500.0,0.0001671,2]
[346698205,1735203040674,-521.26735195,0.0001671,2]
[346698206,1735203040683,-500.0,0.0001671,2]
[346698207,1735203040693,-500.0,0.0001671,2]
[346698208,1735203040702,-500.0,0.0001671,2]
[346698209,1735203040712,-500.0,0.0001671,2]
[346698211,1735203040721,-500.0,0.0001671,2]
[346698213,1735203040730,-500.0,0.0001671,2]
[346698214,1735203040739,-500.0,0.0001671,2]
[346698215,1735203040748,-500.0,0.0001671,2]
[346698216,1735203040757,-500.0,0.0001671,2]
[346698217,1735203040767,-500.0,0.0001671,2]
[346698218,1735203040776,-506.1,0.0001671,2]
[346698219,1735203040785,-500.0,0.0001671,2]
[346698220,1735203040794,-500.0,0.0001671,2]
[346698221,1735203040804,-500.0,0.0001671,2]
[346698222,1735203040813,-500.0,0.0001671,2]
[346698223,1735203040822,-500.0,0.0001671,2]
[346698224,1735203040831,-165.47,0.0001671,2]
[346698225,1735203040841,-500.0,0.0001671,2]
[346698226,1735203040852,-500.0,0.0001671,2]
[346698227,1735203040861,-500.0,0.0001671,2]
[346698228,1735203040870,-612.52,0.0001671,2]
[346698229,1735203040879,-500.0,0.0001671,2]
[346698230,1735203040889,-500.0,0.0001671,2]
[346698231,1735203040898,-500.0,0.0001671,2]
[346698232,1735203040907,-500.0,0.00016711,2]
[346698233,1735203040916,-500.0,0.00016711,2]
[346698234,1735203040925,-500.0,0.00016711,2]
[346698235,1735203040935,-500.0,0.00016711,2]
[346698236,1735203040944,-161.75416904,0.00016888,2]
[346698237,1735203040953,-500.0,0.00016983,2]
[346698238,1735203040962,-500.0,0.00016983,2]
[346698239,1735203040971,-500.0,0.00016983,2]
[346698240,1735203040980,-500.0,0.00016983,2]
[346698241,1735203040990,-500.0,0.00016983,2]
[346698242,1735203040999,-500.0,0.00016983,2]
[346698243,1735203041008,-500.0,0.00016983,2]
[346698244,1735203041017,-500.0,0.00016983,2]
[346698245,1735203041026,-500.0,0.00016983,2]
[346698246,1735203041036,-500.0,0.00016984,2]
[346698247,1735203041045,-500.0,0.00016984,2]
[346698248,1735203041054,-500.24,0.00016984,2]
[346698249,1735203041064,-500.0,0.00016984,2]
[346698250,1735203041073,-500.0,0.00016984,2]
[346698251,1735203041083,-500.0,0.00016984,2]
[346698252,1735203041092,-500.0,0.00016984,2]
[346698253,1735203041102,-500.0,0.00016984,2]
[346698254,1735203041111,-208.1,0.00016984,2]
[346698255,1735203041120,-500.0,0.00016984,2]
[346698256,1735203041129,-500.0,0.00016984,2]
[346698257,1735203041138,-500.0,0.00016984,2]
[346698258,1735203041147,-500.0,0.00016984,2]
[346698259,1735203041157,-500.0,0.00016984,2]
[346698260,1735203041166,-500.0,0.00016984,2]
[346698261,1735203041176,-300.58,0.00016984,2]
[346698262,1735203041185,-500.0,0.00016984,2]
[346698263,1735203041196,-500.0,0.00016984,2]
[346698264,1735203041206,-500.0,0.00016984,2]
[346698265,1735203041215,-500.0,0.00016984,2]
[346698266,1735203041225,-940.25,0.00016984,2]
[346698267,1735203041234,-500.0,0.00016984,2]
[346698268,1735203041244,-500.0,0.00016984,2]
[346698269,1735203041254,-500.0,0.00016984,2]
[346698270,1735203041265,-302.45,0.00016984,2]
[346698271,1735203041274,-500.0,0.00016984,2]
[346698272,1735203041284,-151.93,0.00016984,2]
[346698273,1735203041293,-500.0,0.00016984,2]
[346698274,1735203041303,-500.0,0.00016984,2]
[346698275,1735203041312,-500.0,0.00016984,2]
[346698276,1735203041322,-500.0,0.00016984,2]
[346698277,1735203041331,-558.81797635,0.00016984,2]
[346698278,1735203041340,-500.0,0.00016984,2]
[346698279,1735203041352,-500.0,0.00016984,2]
[346698280,1735203041361,-500.0,0.00016984,2]
[346698281,1735203041370,-500.0,0.00016984,2]
[346698282,1735203041380,-500.0,0.00016984,2]
[346698283,1735203041389,-626.53,0.00016984,2]
[346698284,1735203041398,-500.0,0.00016984,2]
[346698285,1735203041407,-449.11,0.00016985,2]
[346698286,1735203041417,-321.0,0.00017,6]
[346698287,1735203041426,-838.418151,0.00017158,2]
[346698288,1735203041435,-500.0,0.00017257,2]
[346698289,1735203041445,-500.0,0.00017257,2]
[346698290,1735203041454,-500.0,0.00017257,2]
[346698291,1735203041463,-500.0,0.00017257,2]
[346698292,1735203041473,-500.0,0.00017257,2]
[346698293,1735203041482,-220.10143712,0.00017258,2]
[346698294,1735203041493,-500.0,0.00017258,2]
[346698295,1735203041502,-500.0,0.00017258,2]
[346698296,1735203041511,-611.92,0.00017258,2]
[346698297,1735203041520,-601.21,0.00017258,2]
[346698298,1735203041529,-500.0,0.00017258,2]
[346698299,1735203041539,-500.0,0.00017258,2]
[346698300,1735203041548,-500.0,0.00017258,2]
[346698301,1735203041557,-308.12893476,0.00017258,2]
[346698302,1735203041566,-500.0,0.00017258,2]
[346698303,1735203041575,-500.0,0.00017258,2]
[346698304,1735203041584,-500.0,0.00017258,2]
[346698305,1735203041593,-500.0,0.00017258,2]
[346698306,1735203041603,-500.0,0.00017258,2]
[346698307,1735203041612,-940.25,0.00017258,2]
[346698308,1735203041621,-500.0,0.00017258,2]
[346698309,1735203041630,-500.0,0.00017258,2]
[346698310,1735203041639,-500.0,0.00017258,2]
[346698311,1735203041648,-500.0,0.00017258,2]
[346698312,1735203041658,-500.0,0.00017258,2]
[346698313,1735203041669,-500.0,0.00017258,2]
[346698314,1735203041678,-291.08,0.00017258,2]
[346698315,1735203041687,-298.66,0.00017258,2]
[346698316,1735203041696,-500.0,0.00017258,2]
[346698317,1735203041705,-500.0,0.00017258,2]
[346698318,1735203041715,-500.0,0.00017258,2]
[346698319,1735203041724,-161.75416904,0.0001744,2]
[346698320,1735203041733,-542.14672291,0.0001753,2]
[346698321,1735203041742,-500.0,0.00017531,2]
[346698322,1735203041752,-500.0,0.00017531,2]
[346698323,1735203041761,-500.0,0.00017531,2]
[346698324,1735203041770,-500.0,0.00017531,2]
[346698325,1735203041779,-500.0,0.00017532,2]
[346698326,1735203041788,-465.31,0.00017532,2]
[346698327,1735203041798,-500.0,0.00017532,2]
[346698328,1735203041807,-500.0,0.00017532,2]
[346698329,1735203041816,-500.0,0.00017532,2]
[346698330,1735203041824,-500.0,0.00017532,2]
[346698331,1735203041833,-287.66,0.00017532,2]
[346698332,1735203041842,-500.0,0.00017532,2]
[346698333,1735203041852,-500.0,0.00017532,2]
[346698334,1735203041861,-500.0,0.00017532,2]
[346698335,1735203041870,-940.25,0.00017532,2]
[346698336,1735203041879,-491.32,0.00017532,2]
[346698337,1735203041888,-348.47,0.00017532,2]
[346698338,1735203041897,-500.0,0.00017532,2]
[346698339,1735203041906,-500.0,0.00017532,2]
[346698340,1735203041916,-500.0,0.00017532,2]
[346698341,1735203041925,-172.44,0.00017532,2]
[346698342,1735203041934,-639.63,0.00017532,2]
[346698343,1735203041943,-500.0,0.00017532,2]
[346698344,1735203041953,-500.0,0.00017532,2]
[346698345,1735203041962,-193.392,0.00017539,2]
[346698346,1735203041971,-500.0,0.00017539,2]
[346698347,1735203041980,-500.0,0.00017539,2]
[346698348,1735203041990,-3219.68,0.00017539,2]
[346698349,1735203041999,-500.0,0.00017539,2]
[346698350,1735203042008,-500.0,0.00017539,2]
[346698351,1735203042018,-500.0,0.00017539,2]
[346698352,1735203042027,-500.0,0.00017539,2]
[346698353,1735203042036,-500.0,0.00017539,2]
[346698354,1735203042046,-500.0,0.00017539,2]
[346698355,1735203042055,-500.0,0.00017539,2]
[346698356,1735203042064,-500.0,0.0001754,2]
[346698357,1735203042073,-435.29585301,0.0001754,2]
[346698358,1735203042082,-501.66382464,0.0001754,2]
[346698359,1735203042092,-558.56467787,0.0001754,2]
[346698360,1735203042103,-500.0,0.0001754,2]
[346698361,1735203042111,-500.0,0.0001754,2]
[346698362,1735203042121,-500.0,0.0001754,2]
[346698363,1735203042131,-500.0,0.0001754,2]
[346698364,1735203042140,-501.10183231,0.0001754,2]
[346698365,1735203042149,-500.0,0.0001754,2]
[346698366,1735203042159,-500.0,0.0001754,2]
[346698367,1735203042168,-500.0,0.0001754,2]
[346698368,1735203042177,-500.0,0.0001754,2]
[346698369,1735203042188,-500.0,0.0001754,2]
[346698370,1735203042198,-500.0,0.0001754,2]
[346698371,1735203042208,-500.0,0.0001754,2]
[346698372,1735203042217,-500.0,0.0001754,2]
[346698373,1735203042227,-500.0,0.0001754,2]
[346698374,1735203042236,-500.0,0.0001754,2]
[346698375,1735203042246,-500.0,0.0001754,2]
[346698376,1735203042255,-501.91359682,0.0001754,2]
[346698377,1735203042266,-500.0,0.0001754,2]
[346698378,1735203042275,-500.0,0.0001754,2]
[346698379,1735203042286,-500.0,0.0001754,2]
[346698380,1735203042295,-838.41815098,0.00017689,2]
[346698381,1735203042304,-500.0,0.00017805,2]
[346698382,1735203042314,-500.0,0.00017805,2]
[346698383,1735203042323,-500.0,0.00017805,2]
[346698384,1735203042331,-434.18,0.00017805,2]
[346698385,1735203042340,-309.84,0.00017806,2]
[346698386,1735203042351,-328.81,0.00017806,2]
[346698387,1735203042361,-500.0,0.00017806,2]
[346698388,1735203042370,-500.0,0.00017806,2]
[346698389,1735203042379,-226.92,0.00017806,2]
[346698390,1735203042388,-500.0,0.00017806,2]
[346698391,1735203042397,-500.0,0.00017806,2]
[346698392,1735203042406,-940.25,0.00017806,2]
[346698393,1735203042416,-500.0,0.00017806,2]
[346698394,1735203042425,-500.0,0.00017806,2]
[346698395,1735203042434,-500.0,0.00017806,2]
[346698396,1735203042444,-500.0,0.00017806,2]
[346698397,1735203042453,-500.0,0.00017806,2]
[346698398,1735203042462,-500.0,0.00017813,2]
[346698399,1735203042471,-3219.68,0.00017813,2]
[346698400,1735203042480,-500.0,0.00017813,2]
[346698401,1735203042489,-500.0,0.00017813,2]
[346698402,1735203042498,-500.0,0.00017813,2]
[346698403,1735203042507,-573.55,0.00017814,2]
[346698404,1735203042516,-500.0,0.00017814,2]
[346698405,1735203042525,-500.0,0.00017814,2]
[346698406,1735203042534,-443.63706688,0.00017814,2]
[346698408,1735203042543,-500.0,0.00017814,2]
[346698410,1735203042553,-500.0,0.00017814,2]
[346698411,1735203042562,-500.0,0.00017814,2]
[346698414,1735203042571,-420.0,0.0001796,2]
[346698415,1735203042580,-21000.0,0.00018,3]
[346698416,1735203042589,-500.0,0.00018079,2]
[346698417,1735203042598,-500.0,0.00018079,2]
[346698418,1735203042611,-248.84198008,0.00018079,2]
[346698420,1735203042620,-500.0,0.0001808,2]
[346698421,1735203042629,-500.0,0.0001808,2]
[346698422,1735203042638,-500.0,0.0001808,2]
[346698423,1735203042647,-500.0,0.0001808,2]
[346698424,1735203042656,-940.25,0.0001808,2]
[346698425,1735203042666,-500.0,0.0001808,2]
[346698426,1735203042675,-500.0,0.0001808,2]
[346698428,1735203042684,-500.0,0.0001808,2]
[346698429,1735203042694,-500.0,0.0001808,2]
[346698430,1735203042704,-500.0,0.0001808,2]
[346698431,1735203042714,-3219.68,0.00018087,2]
[346698432,1735203042723,-500.0,0.00018087,2]
[346698434,1735203042733,-500.0,0.00018087,2]
[346698435,1735203042743,-500.0,0.00018087,2]
[346698436,1735203042753,-500.0,0.00018088,2]
[346698437,1735203042762,-469.36727494,0.00018218,2]
[346698438,1735203042771,-838.41815098,0.0001822,2]
[346698439,1735203042781,-213.49401695,0.00018353,2]
[346698441,1735203042790,-500.0,0.00018353,2]
[346698442,1735203042799,-239.35123983,0.00018354,2]
[346698443,1735203042808,-500.0,0.00018354,2]
[346698444,1735203042817,-500.0,0.00018354,2]
[346698445,1735203042826,-500.0,0.00018354,2]
[346698446,1735203042835,-940.25,0.00018354,2]
[346698448,1735203042845,-500.0,0.00018354,2]
[346698449,1735203042855,-500.0,0.00018354,2]
[346698450,1735203042864,-287.67076054,0.00018354,2]
[346698452,1735203042952,-500.0,0.00018354,2]
[346698454,1735203042963,-500.0,0.00018354,2]
[346698456,1735203042972,-500.0,0.00018359,2]
[346698457,1735203042981,-500.0,0.00018359,2]
[346698458,1735203042990,-500.0,0.00018359,2]
[346698459,1735203042999,-500.0,0.00018359,2]
[346698460,1735203043009,-185.79293664,0.00018359,2]
[346698461,1735203043018,-500.0,0.00018359,2]
[346698462,1735203043027,-500.0,0.00018359,2]
[346698464,1735203043037,-474.97487182,0.00018359,2]
[346698466,1735203043046,-500.0,0.00018359,2]
[346698467,1735203043055,-500.0,0.00018359,2]
[346698468,1735203043064,-500.0,0.00018359,2]
[346698469,1735203043074,-500.78948363,0.00018359,2]
[346698470,1735203043082,-503.23747268,0.00018359,2]
[346698471,1735203043092,-500.0,0.00018359,2]
[346698472,1735203043101,-504.71507672,0.00018359,2]
[346698473,1735203043111,-500.0,0.00018359,2]
[346698475,1735203043120,-500.0,0.00018359,2]
[346698476,1735203043130,-500.0,0.00018359,2]
[346698477,1735203043141,-170.32892116,0.00018359,2]
[346698478,1735203043150,-500.0,0.00018359,2]
[346698479,1735203043161,-500.0,0.00018359,2]
[346698480,1735203043170,-500.0,0.00018359,2]
[346698481,1735203043179,-500.0,0.00018359,2]
[346698482,1735203043189,-500.0,0.00018359,2]
[346698483,1735203043200,-500.0,0.00018359,2]
[346698484,1735203043209,-500.0,0.00018359,2]
[346698485,1735203043219,-391.85901993,0.00018359,2]
[346698486,1735203043228,-500.0,0.00018359,2]
[346698487,1735203043239,-500.0,0.00018359,2]
[346698488,1735203043248,-507.87619297,0.00018359,2]
[346698489,1735203043257,-500.0,0.00018359,2]
[346698490,1735203043267,-175.56917762,0.00018359,2]
[346698491,1735203043276,-500.0,0.00018359,2]
[346698492,1735203043285,-150.0,0.00018359,2]
[346698494,1735203043294,-500.0,0.00018359,2]
[346698496,1735203043303,-3219.68,0.00018361,2]
[346698498,1735203043313,-640.91,0.00018361,2]
[346698500,1735203043322,-500.0,0.00018361,2]
[346698501,1735203043331,-500.0,0.00018361,2]
[346698502,1735203043340,-321.0,0.000185,7]
[346698503,1735203043349,-500.0,0.00018627,2]
[346698504,1735203043358,-500.0,0.00018628,2]
[346698505,1735203043367,-500.0,0.00018628,2]
[346698506,1735203043377,-500.0,0.00018628,2]
[346698507,1735203043386,-940.25,0.00018628,2]
[346698508,1735203043395,-500.0,0.00018628,2]
[346698509,1735203043404,-500.0,0.00018628,2]
[346698510,1735203043413,-620.7,0.00018628,2]
[346698511,1735203043424,-500.0,0.00018628,2]
[346698512,1735203043433,-500.0,0.00018633,2]
[346698513,1735203043443,-500.0,0.00018633,2]
[346698514,1735203043452,-500.0,0.00018633,2]
[346698515,1735203043461,-500.0,0.00018633,2]
[346698516,1735203043470,-500.0,0.00018633,2]
[346698517,1735203043479,-645.5,0.00018633,2]
[346698518,1735203043488,-495.0,0.00018633,2]
[346698519,1735203043497,-500.0,0.00018633,2]
[346698520,1735203043506,-500.0,0.00018633,2]
[346698521,1735203043515,-500.0,0.00018633,2]
[346698522,1735203043525,-500.0,0.00018633,2]
[346698523,1735203043534,-549.72696869,0.00018633,2]
[346698524,1735203043543,-3219.68,0.00018635,2]
[346698525,1735203043552,-500.0,0.00018635,2]
[346698526,1735203043561,-500.0,0.00018635,2]
[346698527,1735203043570,-838.41815098,0.00018751,2]
[346698528,1735203043579,-500.0,0.00018901,2]
[346698529,1735203043589,-500.0,0.00018902,2]
[346698530,1735203043599,-611.77,0.00018902,2]
[346698531,1735203043608,-500.0,0.00018902,2]
[346698532,1735203043617,-940.25,0.00018902,2]
[346698533,1735203043626,-500.0,0.00018902,2]
[346698534,1735203043635,-285.98,0.00018902,2]
[346698535,1735203043644,-500.0,0.00018902,2]
[346698536,1735203043653,-500.0,0.00018907,2]
[346698537,1735203043663,-500.0,0.00018907,2]
[346698538,1735203043672,-500.0,0.00018907,2]
[346698539,1735203043681,-3219.68,0.00018909,2]
[346698540,1735203043690,-500.0,0.00018909,2]
[346698541,1735203043699,-500.0,0.00018909,2]
[346698542,1735203043708,-302.72757545,0.00019,2]
[346698543,1735203043717,-302.72757545,0.00019,2]
[346698544,1735203043726,-500.0,0.00019175,2]
[346698545,1735203043735,-345.89,0.00019176,2]
[346698546,1735203043744,-500.0,0.00019176,2]
[346698547,1735203043754,-940.25,0.00019176,2]
[346698548,1735203043763,-500.0,0.00019176,2]
[346698549,1735203043772,-500.0,0.00019176,2]
[346698550,1735203043781,-500.0,0.00019178,60]
[346698551,1735203043791,-572.07,0.00019181,2]
[346698552,1735203043800,-3219.68,0.00019183,2]
[346698553,1735203043809,-500.0,0.00019183,2]
[346698554,1735203043819,-174.94,0.00019183,2]
[346698555,1735203043828,-302.72757545,0.0001919,2]
[346698556,1735203043837,-302.72757545,0.0001919,2]
[346698557,1735203043846,-155.4,0.000192,31]
[346698558,1735203043856,-155.4,0.000192,31]
[346698559,1735203043865,-155.4,0.000192,31]
[346698560,1735203043874,-155.4,0.000192,31]
[346698561,1735203043883,-155.4,0.000192,31]
[346698562,1735203043892,-155.4,0.000192,31]
[346698563,1735203043900,-155.4,0.000192,31]
[346698564,1735203043910,-155.4,0.000192,31]
[346698565,1735203043919,-155.4,0.000192,31]
[346698566,1735203043927,-155.4,0.000192,31]
[346698567,1735203043937,-155.4,0.000192,31]
[346698568,1735203043946,-155.4,0.000192,31]
[346698569,1735203043955,-155.4,0.000192,31]
[346698570,1735203043964,-155.4,0.000192,31]
[346698571,1735203043973,-155.4,0.000192,31]
[346698572,1735203043982,-155.4,0.000192,31]
[346698573,1735203043991,-666.0,0.00019224,2]
[346698574,1735203044000,-2500.25645322,0.00019282,2]
[346698575,1735203044009,-838.41815098,0.00019282,2]
[346698576,1735203044019,-151.0,0.000193,2]
[346698577,1735203044028,-500.0,0.00019324,2]
[346698578,1735203044037,-500.0,0.00019324,2]
[346698579,1735203044046,-500.0,0.00019324,2]
[346698580,1735203044055,-500.0,0.00019324,2]
[346698581,1735203044064,-500.0,0.00019324,2]
[346698582,1735203044073,-500.0,0.00019324,2]
[346698583,1735203044082,-500.0,0.00019324,2]
[346698584,1735203044091,-500.0,0.00019324,2]
[346698585,1735203044101,-500.0,0.00019324,2]
[346698586,1735203044110,-500.0,0.00019324,2]
[346698587,1735203044119,-500.0,0.00019324,2]
[346698588,1735203044128,-500.0,0.00019324,2]
[346698589,1735203044137,-500.0,0.00019324,2]
[346698590,1735203044146,-500.0,0.00019324,2]
[346698591,1735203044155,-500.0,0.00019324,2]
[346698592,1735203044164,-500.0,0.00019324,2]
[346698593,1735203044173,-500.0,0.00019324,2]
[346698594,1735203044182,-500.0,0.00019324,2]
[346698595,1735203044193,-500.0,0.00019324,2]
[346698596,1735203044202,-500.0,0.00019324,2]
[346698597,1735203044211,-500.0,0.00019324,2]